bitfinex-derivatives/quotes_BNBF0:USTF0_20250406
["timestamp","ask_amount","ask_price","bid_price","bid_amount"]
[1743939777176,0.499,588.27,587.99,0.28414435]
[1743939778683,0.499,588.27,588.0,0.28413761]
[1743939778885,0.499,588.27,587.99,0.28413761]
[1743939779084,0.499,588.27,588.0,0.28413761]
[1743939779285,0.499,588.27,587.99,0.28413761]
[1743939779584,0.499,588.27,588.0,0.28413761]
[1743939779785,0.499,588.27,587.93,0.28413761]
[1743939780287,0.499,588.27,587.94,0.28414144]
[1743939780480,0.499,588.27,587.93,0.28414144]
[1743939780681,0.499,588.27,587.94,0.28414144]
[1743939780883,0.499,588.27,587.92,1.27319059]
[1743939781084,0.499,588.27,587.93,0.28414077]
[1743939781284,0.499,588.27,587.89,0.28414077]
[1743939781785,0.499,588.27,587.9,0.28414077]
[1743939781983,0.499,588.27,587.89,0.28414077]
[1743939782182,0.499,588.27,587.9,0.28414077]
[1743939782389,0.499,588.27,587.89,0.28414077]
[1743939782593,0.499,588.27,587.9,0.28414077]
[1743939782790,0.499,588.27,587.89,0.28414077]
[1743939782988,0.499,588.27,587.88,1.27319059]
[1743939783186,0.499,588.27,587.89,0.28413767]
[1743939783987,0.693,588.26,587.89,0.28413767]
[1743939784889,0.693,588.26,587.88,1.27319059]
[1743939785189,0.693,588.26,587.89,0.28414077]
[1743939786387,0.693,588.26,587.82,0.28414077]
[1743939787288,0.647,588.25,587.82,0.28414077]
[1743939788191,0.647,588.25,587.86,1.27319059]
[1743939788491,0.647,588.25,587.87,0.28414077]
[1743939789992,0.647,588.25,587.88,1.27319059]
[1743939790190,0.647,588.25,587.89,0.28414077]
[1743939790494,0.647,588.25,587.9,0.28414291]
[1743939790694,0.647,588.25,587.89,0.28414291]
[1743939791895,0.647,588.25,587.92,1.27319059]
[1743939792094,0.647,588.25,587.93,0.28414291]
[1743939795096,0.647,588.25,587.95,1.27319059]
[1743939795492,0.647,588.25,587.96,0.28414493]
[1743939796397,0.647,588.25,587.95,1.27319059]
[1743939796596,0.647,588.25,587.96,0.28414426]
[1743939797995,0.647,588.25,587.97,0.28414413]
[1743939798199,0.647,588.25,587.96,0.28414413]
[1743939798395,0.647,588.25,587.97,0.28414413]
[1743939798599,0.647,588.25,587.96,0.28414413]
[1743939800504,0.647,588.25,588.0,1.27319059]
[1743939800703,0.647,588.25,588.01,0.28414413]
[1743939801403,0.647,588.25,588.02,0.28412865]
[1743939801699,0.647,588.25,588.03,0.28412865]
[1743939801903,0.647,588.25,588.01,0.28412865]
[1743939802098,0.647,588.25,588.02,0.28412865]
[1743939802299,0.647,588.25,588.03,0.28412865]
[1743939802501,0.647,588.25,588.01,0.28412865]
[1743939802699,0.647,588.25,588.02,0.28412865]
[1743939802904,0.647,588.25,588.01,0.28412865]
[1743939803900,0.647,588.25,588.0,0.28412865]
[1743939804104,0.647,588.25,588.01,0.28412865]
[1743939804305,0.647,588.25,588.0,0.28412865]
[1743939804606,0.647,588.25,588.01,0.28412865]
[1743939804805,0.647,588.25,588.0,0.28412865]
[1743939806608,0.647,588.25,587.98,0.28412865]
[1743939806808,0.647,588.25,587.99,0.28412865]
[1743939807008,0.647,588.25,587.98,0.28412865]
[1743939807208,0.647,588.25,587.99,0.28412865]
[1743939807409,0.647,588.25,587.98,0.28412865]
[1743939808007,0.647,588.25,587.97,1.27319059]
[1743939808211,0.647,588.25,587.98,0.28414277]
[1743939808611,0.647,588.25,587.97,1.27319059]
[1743939808911,0.647,588.25,587.91,1.27319059]
[1743939811414,0.647,588.25,587.68,1.90930571]
[1743939811614,0.647,588.25,587.69,0.28414445]
[1743939811813,0.647,588.25,587.69,0.62445992]
[1743939812010,0.647,588.25,587.7,0.28414445]
[1743939813016,0.647,588.25,587.71,0.28413677]
[1743939813211,0.647,588.25,587.72,0.28413677]
[1743939813416,0.647,588.25,587.7,0.28413677]
[1743939813617,0.647,588.25,587.71,0.28413677]
[1743939813818,0.647,588.25,587.7,0.28413677]
[1743939814117,0.647,588.25,587.71,0.28413677]
[1743939814317,0.647,588.25,587.7,0.28413677]
[1743939814520,0.647,588.25,587.69,0.34031547]
[1743939814714,0.647,588.25,587.71,0.28414176]
[1743939814918,0.647,588.25,587.72,0.28414176]
[1743939815315,0.647,588.25,587.73,0.28414176]
[1743939815518,0.647,588.25,587.7,0.28414176]
[1743939815714,0.647,588.25,587.71,0.28414176]
[1743939815917,0.647,588.25,587.7,0.28414176]
[1743939816318,0.647,588.25,587.69,0.34031547]
[1743939816518,0.647,588.25,587.7,0.28414272]
[1743939817318,0.693,588.26,587.7,0.28414272]
[1743939818916,1.52702469,589.58,587.7,0.28414272]
[1743939819116,0.89453583,589.02,587.7,0.28414272]
[1743939819420,0.33955857,589.0,587.79,1.27319059]
[1743939819622,0.89453545,588.99,587.8,0.28415894]
[1743939819815,0.92172327,588.98,587.8,0.28415894]
[1743939820018,0.92172903,588.97,587.8,0.28415894]
[1743939820217,0.9217348,588.96,587.8,0.28415894]
[1743939820416,0.92169012,588.95,587.8,0.28415894]
[1743939820615,0.92169588,588.94,587.8,0.28415894]
[1743939820817,0.92170165,588.93,587.8,0.28415894]
[1743939821020,0.92170742,588.92,587.8,0.28415894]
[1743939821216,0.92171318,588.91,587.8,0.28415894]
[1743939821517,0.92171895,588.9,587.8,0.28415894]
[1743939821725,0.92172472,588.89,587.74,0.28415894]
[1743939821921,0.92173048,588.88,587.74,0.28415894]
[1743939822121,0.92173625,588.87,587.74,0.28415894]
[1743939822322,0.92174202,588.86,587.74,0.28415894]
[1743939822622,0.92174779,588.85,587.74,0.28415894]
[1743939822815,0.92175355,588.84,587.74,0.28415894]
[1743939823015,0.92175932,588.83,587.74,0.28415894]
[1743939823220,0.92176509,588.82,587.74,0.28415894]
[1743939823523,0.92176509,588.82,587.75,0.28415966]
[1743939823524,0.58210272,588.81,587.75,0.28415966]
[1743939823723,0.58210272,588.8,587.76,0.28415966]
[1743939823925,0.58210272,588.79,587.72,0.28415966]
[1743939824127,0.58210272,588.78,587.73,0.28415966]
[1743939824322,0.58210272,588.77,587.72,0.28415966]
[1743939824522,0.58210272,588.76,587.71,1.27319059]
[1743939824722,0.58210272,588.75,587.73,0.28415959]
[1743939824924,0.58210272,588.74,587.74,0.28415959]
[1743939825124,0.58210272,588.73,587.72,0.28415959]
[1743939825326,0.58210272,588.72,587.71,1.27319059]
[1743939825626,0.58210272,588.71,587.72,0.28415915]
[1743939825826,0.58210272,588.7,587.72,0.28415915]
[1743939826029,0.58210272,588.69,587.72,0.28415915]
[1743939826326,0.58210272,588.68,587.72,0.28415915]
[1743939826526,0.58210272,588.67,587.72,0.28415915]
[1743939826726,0.58210272,588.66,587.72,0.28415915]
[1743939826929,0.58210272,588.65,587.72,0.28415915]
[1743939827123,0.58210272,588.64,587.72,0.28415915]
[1743939827427,0.58210272,588.63,587.72,0.28415915]
[1743939827626,0.58210272,588.62,587.72,0.28415915]
[1743939827827,0.58210272,588.61,587.72,0.28415915]
[1743939828328,0.33966237,588.82,587.72,0.28415915]
[1743939828522,0.29576747,588.6,587.72,0.28415915]
[1743939829027,0.33966237,588.82,587.72,0.28415915]
[1743939829527,0.33966237,588.82,587.71,1.27319059]
[1743939829722,0.33966237,588.82,587.72,0.28415956]
[1743939830029,0.58196621,588.81,587.88,1.27319059]
[1743939830226,0.92163435,588.81,587.88,1.27319059]
[1743939830430,0.58196621,588.8,587.89,0.28415898]
[1743939830826,0.58196621,588.79,587.89,0.28415898]
[1743939831032,0.58196621,588.78,587.89,0.28415898]
[1743939831229,0.58196621,588.77,587.89,0.28415898]
[1743939831426,0.58196621,588.76,587.9,0.28415918]
[1743939831630,0.58196621,588.75,587.89,0.28415918]
[1743939831827,0.58196621,588.74,587.9,0.28415918]
[1743939832027,0.58196621,588.73,587.89,0.28415918]
[1743939832227,0.58196621,588.72,587.89,0.28415918]
[1743939832431,0.58194296,588.71,587.89,0.28415918]
[1743939832630,0.63542806,588.81,587.89,0.28415918]
[1743939832631,0.58194296,588.7,587.89,0.28415918]
[1743939832826,0.58194296,588.69,587.89,0.28415918]
[1743939833131,0.58194296,588.68,587.9,0.28415951]
[1743939833330,0.58194296,588.67,587.86,0.28415951]
[1743939833529,0.58194296,588.66,587.86,0.28415951]
[1743939833729,0.58193065,588.65,587.86,0.28415951]
[1743939833926,0.58193065,588.64,587.86,0.28415951]
[1743939834125,0.58193065,588.63,587.86,0.28415951]
[1743939834325,0.58193065,588.62,587.86,0.28415951]
[1743939834531,0.58193065,588.61,587.86,0.28415951]
[1743939834728,0.58193065,588.61,587.84,1.27319059]
[1743939834729,0.58193065,588.6,587.87,0.28415897]
[1743939834930,0.58193065,588.59,587.85,0.28415897]
[1743939835128,0.58193065,588.58,587.86,0.28415897]
[1743939835326,0.58193065,588.57,587.85,0.28415897]
[1743939835530,0.58193065,588.56,587.85,0.28415897]
[1743939835731,0.58193065,588.55,587.85,0.28415897]
[1743939835932,0.58193065,588.54,587.85,0.28415897]
[1743939836133,0.58190994,588.53,587.85,0.28415897]
[1743939836336,0.58190994,588.52,587.85,0.28415897]
[1743939836525,0.58190994,588.51,587.86,0.28415929]
[1743939836726,0.58190994,588.5,587.85,0.28415929]
[1743939836927,0.58190994,588.49,587.86,0.28415929]
[1743939837128,0.58190994,588.48,587.85,0.28415929]
[1743939837332,0.58190994,588.47,587.85,0.28415929]
[1743939837632,0.58190994,588.46,587.85,0.28415929]
[1743939837833,0.58190994,588.45,587.85,0.28415929]
[1743939838034,0.58190994,588.44,587.85,0.28415929]
[1743939838328,0.58190994,588.43,587.86,0.28415968]
[1743939838533,0.58190994,588.42,587.85,0.28415968]
[1743939838726,0.58190994,588.41,587.86,0.28415968]
[1743939838931,0.58190994,588.4,587.85,0.28415968]
[1743939839126,0.58190994,588.39,587.87,0.28415968]
[1743939839335,0.58190994,588.38,587.88,0.28415968]
[1743939839532,0.33966814,588.81,587.84,0.28415968]
[1743939839726,0.29575364,588.58,587.83,1.27319059]
[1743939839932,0.58188028,588.57,587.84,0.28415892]
[1743939840133,0.58188028,588.56,587.84,0.28415892]
[1743939840333,0.58188028,588.55,587.84,0.28415892]
[1743939840533,0.58188028,588.54,587.84,0.28415892]
[1743939840835,0.58188028,588.53,587.84,0.28415892]
[1743939841033,0.58188028,588.52,587.84,0.28415892]
[1743939841228,0.58188028,588.51,587.84,0.28415892]
[1743939841533,0.58188028,588.5,587.84,0.28415892]
[1743939841731,0.58188028,588.49,587.84,0.28415892]
[1743939841931,0.58188028,588.48,587.73,0.28415892]
[1743939842132,0.58188028,588.47,587.73,0.28415892]
[1743939842333,0.58188028,588.46,587.73,0.28415892]
[1743939842532,0.58188028,588.45,587.73,0.28415892]
[1743939842829,0.33966814,588.81,587.73,0.28415892]
[1743939842830,0.58188028,588.44,587.73,0.28415892]
[1743939843131,0.58188028,588.43,587.73,0.28415892]
[1743939843335,0.29579135,588.61,587.73,0.28415892]
[1743939843537,0.58190586,588.6,587.73,0.28415892]
[1743939843835,0.29579135,588.61,587.73,0.28415892]
[1743939843836,0.58190586,588.59,587.73,0.28415892]
[1743939844030,0.58190586,588.58,587.73,0.28415892]
[1743939844233,0.58190586,588.57,587.73,0.28415892]
[1743939844433,0.58190586,588.56,587.72,1.27319059]
[1743939844633,0.29579135,588.61,587.74,0.28414297]
[1743939844634,0.58190586,588.55,587.74,0.28414297]
[1743939844835,0.58190586,588.54,587.73,0.28414297]
[1743939845131,0.58190586,588.53,587.72,1.27319059]
[1743939845335,0.58190586,588.52,587.73,0.2841433]
[1743939845535,0.58190586,588.51,587.73,0.2841433]
[1743939845736,0.58190586,588.5,587.73,0.2841433]
[1743939845937,0.58190586,588.49,587.73,0.2841433]
[1743939846137,0.58190586,588.48,587.73,0.2841433]
[1743939846337,0.58190586,588.47,587.74,0.2841433]
[1743939846537,0.58190586,588.46,587.7,0.2841433]
[1743939846730,0.58190586,588.45,587.71,0.2841433]
[1743939846935,0.58190586,588.44,587.7,0.2841433]
[1743939847132,0.58190586,588.43,587.71,0.2841433]
[1743939847336,0.58190586,588.42,587.7,0.2841433]
[1743939847535,0.667,588.54,587.71,0.2841433]
[1743939847737,0.58191067,588.53,587.7,0.2841433]
[1743939847938,0.58191067,588.52,587.72,0.2841433]
[1743939848139,0.58191067,588.51,587.73,0.2841433]
[1743939848337,0.58191067,588.5,587.7,0.2841433]
[1743939848542,0.58191067,588.49,587.71,0.2841433]
[1743939848739,0.58191067,588.48,587.7,0.2841433]
[1743939848932,0.58191067,588.47,587.71,0.2841433]
[1743939849137,0.58191067,588.46,587.7,0.2841433]
[1743939849333,0.58191067,588.45,587.74,1.27319059]
[1743939849638,0.58191067,588.44,587.75,0.2841433]
[1743939849833,0.58191067,588.43,587.75,0.2841433]
[1743939850039,0.58191067,588.42,587.75,0.2841433]
[1743939850237,0.58191826,588.41,587.75,0.2841433]
[1743939850441,0.667,588.54,587.75,0.2841433]
[1743939850634,0.58191985,588.53,587.75,0.2841433]
[1743939850834,0.58191985,588.52,587.75,0.2841433]
[1743939851033,0.58191985,588.51,587.75,0.2841433]
[1743939851233,0.58191985,588.5,587.75,0.2841433]
[1743939851434,0.58191985,588.49,587.76,0.28414616]
[1743939851641,0.58191985,588.48,587.76,1.27319059]
[1743939851834,0.58191985,588.47,587.77,0.28414616]
[1743939852040,0.58191985,588.46,587.77,0.28414616]
[1743939852238,0.58191985,588.45,587.77,0.28414616]
[1743939852438,0.58191985,588.44,587.77,0.28414616]
[1743939852636,0.58191985,588.43,587.77,0.28414616]
[1743939852838,0.58191985,588.42,587.77,0.28414616]
[1743939853038,0.58191985,588.41,587.77,0.28414616]
[1743939853236,0.667,588.54,587.77,0.28414616]
[1743939853542,0.58184836,588.53,587.77,0.28414616]
[1743939853743,0.58184836,588.52,587.77,0.28414616]
[1743939853942,0.58184836,588.51,587.83,1.27319059]
[1743939854138,0.58184836,588.5,587.84,0.28414616]
[1743939854339,0.58184836,588.49,587.84,0.28414616]
[1743939854538,0.58184836,588.48,587.84,0.28414616]
[1743939854739,0.58184836,588.47,587.84,0.28414616]
[1743939854941,0.58184836,588.46,587.84,0.28414616]
[1743939855139,0.58184836,588.45,587.84,0.28414616]
[1743939855339,0.58184836,588.44,587.84,0.28414616]
[1743939855539,0.58175543,588.43,587.84,0.28414616]
[1743939855740,0.58175543,588.42,587.84,0.28414616]
[1743939855944,0.667,588.54,587.89,1.27319059]
[1743939856143,0.58176826,588.53,587.9,0.28414616]
[1743939856346,0.58176826,588.52,587.9,0.28414616]
[1743939856548,0.58176826,588.51,587.9,0.28414616]
[1743939856742,0.58176826,588.5,587.9,0.28414616]
[1743939856945,0.58176826,588.49,587.9,0.28414616]
[1743939857146,0.58176826,588.48,587.9,0.28414616]
[1743939857346,0.5817577,588.47,587.9,0.28414616]
[1743939857545,0.667,588.54,587.9,0.28414616]
[1743939857748,0.58175723,588.53,587.9,0.28414616]
[1743939857952,0.58175723,588.52,587.9,0.28414616]
[1743939858252,0.58175723,588.51,587.9,0.28414616]
[1743939858445,0.58175723,588.5,587.9,0.28414616]
[1743939858645,0.58175723,588.49,587.91,1.27319059]
[1743939858845,0.58175723,588.48,587.92,0.28414616]
[1743939859066,0.58175723,588.47,587.92,0.28414616]
[1743939859251,0.667,588.54,587.92,0.28414616]
[1743939859450,0.5817676,588.53,587.92,0.28414616]
[1743939859647,0.5817676,588.52,587.92,0.28414616]
[1743939859851,0.5817676,588.51,587.92,0.28414616]
[1743939860048,0.667,588.54,587.92,0.28414616]
[1743939860453,0.58173558,588.53,587.92,0.28414616]
[1743939860655,0.58173558,588.52,587.92,0.28414616]
[1743939860849,0.58173558,588.52,587.85,1.27319059]
[1743939860850,0.58173558,588.51,587.86,0.28414616]
[1743939861053,0.667,588.54,587.87,0.28414616]
[1743939861252,0.58170813,588.53,587.86,0.28414616]
[1743939861452,0.58170813,588.52,587.86,0.28414616]
[1743939861650,0.58170813,588.51,587.86,0.28414616]
[1743939861855,0.667,588.54,587.86,0.28414616]
[1743939862155,0.58170322,588.53,587.86,0.28414616]
[1743939862357,0.58170322,588.52,587.86,0.28414616]
[1743939862549,0.58170322,588.51,587.86,0.28414616]
[1743939862753,0.667,588.54,587.86,0.28414616]
[1743939862954,0.58170795,588.53,587.86,0.28414616]
[1743939863155,0.58170795,588.52,587.86,0.28414616]
[1743939863455,0.667,588.54,587.86,0.28414616]
[1743939863755,0.58171153,588.53,587.86,0.28414616]
[1743939863950,0.667,588.54,587.86,0.28414616]
[1743939864150,0.58171157,588.53,587.9,1.27319059]
[1743939864356,0.667,588.54,587.91,0.28414616]
[1743939864555,0.58167663,588.53,587.91,0.28414616]
[1743939864753,0.58167663,588.52,587.9,1.27319059]
[1743939864953,0.58167663,588.51,587.91,0.28411098]
[1743939865156,0.58167663,588.5,587.91,0.28411098]
[1743939865356,0.58167663,588.49,587.91,0.28411098]
[1743939865556,0.58167663,588.48,587.9,1.27319059]
[1743939865751,0.667,588.54,587.91,0.28411136]
[1743939865953,0.58159443,588.53,587.91,0.28411136]
[1743939866154,0.58159443,588.52,587.91,0.28411136]
[1743939866354,0.58159443,588.51,587.91,0.28411136]
[1743939866555,0.58159443,588.5,587.91,0.28411136]
[1743939866755,0.58159443,588.49,587.91,0.28411136]
[1743939866952,0.58159443,588.48,587.91,0.28411136]
[1743939867157,0.667,588.54,587.91,0.28411136]
[1743939867458,0.5815163,588.53,587.91,0.28411136]
[1743939867652,0.5815163,588.52,587.91,0.28411136]
[1743939867853,0.5815163,588.51,587.91,0.28411136]
[1743939868057,0.5815163,588.5,587.87,0.28411136]
[1743939868353,0.5815163,588.49,587.86,1.27319059]
[1743939868558,0.667,588.54,587.87,0.28410959]
[1743939868758,0.58148567,588.53,587.87,0.28410959]
[1743939868959,0.58148567,588.52,587.87,0.28410959]
[1743939869154,0.58148567,588.51,587.87,0.28410959]
[1743939869354,0.58148567,588.5,587.87,0.28410959]
[1743939869557,0.667,588.54,587.87,0.28410959]
[1743939869757,0.58145574,588.53,587.87,0.28410959]
[1743939870058,0.58145574,588.52,587.88,1.27319059]
[1743939870258,0.58144917,588.51,587.89,0.28410959]
[1743939870459,0.667,588.54,587.89,0.28410959]
[1743939870660,0.58140959,588.53,587.89,0.28410959]
[1743939870958,0.58140959,588.52,587.89,0.28410959]
[1743939871159,0.58140959,588.51,587.89,0.28410959]
[1743939871360,0.667,588.54,587.89,0.28410959]
[1743939871659,0.58136208,588.53,587.9,1.27319059]
[1743939871859,0.58136208,588.52,587.91,0.28410959]
[1743939872059,0.58136208,588.51,587.91,0.28410959]
[1743939872359,0.667,588.54,587.91,0.28410959]
[1743939872558,0.58131573,588.53,587.91,0.28410959]
[1743939872759,0.667,588.54,587.91,0.28410959]
[1743939873360,0.667,588.54,587.9,1.27319059]
[1743939873558,0.667,588.54,587.91,0.28410477]
[1743939873758,0.669,588.53,587.91,0.28410477]
[1743939874960,0.669,588.53,587.9,1.27319059]
[1743939875162,0.669,588.53,587.91,0.28410498]
[1743939876863,0.669,588.53,587.94,1.27319059]
[1743939877063,0.669,588.53,587.95,0.28410498]
[1743939880759,0.669,588.53,587.85,0.28410498]
[1743939883167,0.669,588.53,587.86,0.28410498]
[1743939883366,0.669,588.53,587.8,0.28410498]
[1743939885869,0.667,588.54,587.8,0.28410498]
[1743939886069,0.58108237,588.53,587.8,0.28410498]
[1743939886269,0.667,588.54,587.8,0.28410498]
[1743939886471,0.58108039,588.53,587.8,0.28410498]
[1743939886668,0.667,588.54,587.8,0.28410498]
[1743939886871,0.58108386,588.53,587.8,0.28410498]
[1743939887066,0.667,588.54,587.81,0.28410592]
[1743939887370,0.58109106,588.53,587.82,0.28410592]
[1743939887571,0.667,588.54,587.83,0.28410592]
[1743939887771,0.58109847,588.53,587.8,0.28410592]
[1743939888066,0.33966814,588.81,587.81,0.28410592]
[1743939888263,0.58109077,588.8,587.8,0.28410592]
[1743939888470,0.58109077,588.79,587.81,0.28410592]
[1743939888665,0.58109077,588.78,587.82,0.28410498]
[1743939888870,0.58109077,588.77,587.8,1.55729557]
[1743939889070,0.58109077,588.76,587.81,0.28410498]
[1743939889270,0.58109077,588.75,587.81,0.28410498]
[1743939889469,0.58109077,588.74,587.81,0.28410498]
[1743939889668,0.58109077,588.73,587.81,0.28410498]
[1743939889971,0.58109077,588.72,587.81,0.28410498]
[1743939890167,0.58109077,588.71,587.8,1.27319059]
[1743939890366,0.58109077,588.7,587.81,0.28410426]
[1743939890571,0.58109077,588.69,587.89,1.27319059]
[1743939890771,0.58109077,588.68,587.9,0.28410426]
[1743939890969,0.58108601,588.67,587.9,0.28410426]
[1743939891169,0.58108601,588.66,587.9,0.28410426]
[1743939891372,0.58108601,588.65,587.9,0.28410426]
[1743939891568,0.58108601,588.64,587.9,0.28410426]
[1743939891874,1.20908601,588.63,587.9,0.28410426]
[1743939892069,0.58108601,588.62,587.9,0.28410426]
[1743939892268,0.58108601,588.61,587.9,0.28410426]
[1743939892469,0.58108601,588.6,587.91,0.284105]
[1743939892774,0.58108601,588.59,587.94,1.27319059]
[1743939892973,0.58108601,588.58,587.95,0.284105]
[1743939893173,0.58108601,588.57,587.95,0.284105]
[1743939893374,0.58108601,588.56,587.95,0.284105]
[1743939893673,0.58108601,588.55,587.96,0.28410488]
[1743939893973,0.58108601,588.54,587.97,0.28410488]
[1743939894173,0.58108601,588.53,587.95,0.28410488]
[1743939894374,0.628,588.63,587.96,0.28410488]
[1743939894674,0.58128348,588.62,587.97,0.28410488]
[1743939894874,0.58128348,588.61,587.93,0.28410488]
[1743939895067,0.58128348,588.6,587.94,0.28410488]
[1743939895271,0.58128348,588.6,587.92,1.27319059]
[1743939895272,0.58128348,588.59,587.93,0.28410488]
[1743939895473,0.58128348,588.58,587.94,0.28410488]
[1743939895674,0.58128348,588.57,587.93,0.28410488]
[1743939895974,0.628,588.63,587.94,0.28410485]
[1743939896174,0.5813619,588.62,587.93,0.28410485]
[1743939896370,0.5813619,588.61,587.94,0.28410485]
[1743939896569,0.5813619,588.6,587.93,0.28410485]
[1743939896771,0.5813619,588.59,587.94,0.28410485]
[1743939896970,0.628,588.63,587.94,1.27319059]
[1743939896971,0.5813619,588.58,587.94,1.27319059]
[1743939897170,0.5813619,588.57,587.95,0.28410418]
[1743939897372,0.628,588.63,587.95,0.28410418]
[1743939897569,0.58140049,588.62,587.95,0.28410418]
[1743939897770,0.58140049,588.61,587.95,0.28410418]
[1743939897970,0.58140049,588.6,587.95,0.28410418]
[1743939898169,0.58140049,588.59,587.95,0.28410418]
[1743939898371,0.58140049,588.58,587.95,0.28410418]
[1743939898573,0.628,588.63,587.94,1.27319059]
[1743939898878,0.5814364,588.62,587.95,0.28410074]
[1743939899078,0.5814364,588.61,587.95,0.28410074]
[1743939899378,0.5814364,588.6,587.95,0.28410074]
[1743939899579,0.5814364,588.59,587.9,0.28410074]
[1743939899878,0.5814364,588.58,587.91,0.28410074]
[1743939900073,0.5814364,588.57,587.9,0.28410074]
[1743939900274,0.628,588.63,587.91,0.28410452]
[1743939900474,0.58144991,588.62,587.9,0.28410452]
[1743939900674,0.58144991,588.61,587.91,0.28410452]
[1743939900876,0.58144991,588.6,587.91,0.28410452]
[1743939901079,0.58144991,588.59,587.92,0.28410274]
[1743939901379,0.58144991,588.58,587.9,0.28410274]
[1743939901579,0.628,588.63,587.89,1.27319059]
[1743939901580,0.58144991,588.57,587.91,0.28410274]
[1743939901779,0.628,588.63,587.92,0.28410274]
[1743939901980,0.58161615,588.62,587.9,0.28410274]
[1743939902181,0.58161615,588.61,587.91,0.28410274]
[1743939902381,0.58161615,588.6,587.9,0.28410274]
[1743939902581,0.58161615,588.59,587.91,0.28410274]
[1743939902876,0.58161615,588.58,587.92,0.28410274]
[1743939903080,0.58161615,588.57,587.93,0.28410274]
[1743939903281,0.58161615,588.56,587.94,0.28410274]
[1743939903582,0.58161615,588.55,587.95,0.28410274]
[1743939903779,0.58161615,588.54,587.9,0.28410274]
[1743939903980,0.58161615,588.53,587.9,0.28410274]
[1743939904180,0.58161615,588.52,587.92,1.27319059]
[1743939904377,0.58161615,588.51,587.93,0.28410274]
[1743939904680,0.58161615,588.5,587.93,0.28410274]
[1743939904975,0.628,588.63,587.93,0.28410274]
[1743939905281,0.58171394,588.62,587.93,0.28410274]
[1743939905580,0.58171394,588.61,587.93,0.28410274]
[1743939905781,0.58171394,588.6,587.96,1.27319059]
[1743939905976,0.628,588.63,587.97,0.28410274]
[1743939906175,0.58174106,588.62,587.97,0.28410274]
[1743939906376,0.58174106,588.61,587.97,0.28410274]
[1743939906580,0.58174106,588.6,587.98,0.28410725]
[1743939906780,0.58174106,588.59,587.99,0.28410725]
[1743939906982,0.58174106,588.58,587.97,0.28410725]
[1743939907183,0.58174106,588.57,587.98,0.28410725]
[1743939907378,0.58174106,588.56,587.97,0.28410725]
[1743939907583,0.58174106,588.55,587.98,0.28410725]
[1743939907781,0.58174106,588.54,588.03,1.27319059]
[1743939907981,0.58174106,588.53,588.04,0.28410725]
[1743939908280,0.58174106,588.52,588.04,0.28410725]
[1743939908476,0.58174106,588.51,588.04,0.28410725]
[1743939908679,0.58174106,588.5,588.04,0.28410725]
[1743939908980,0.58174106,588.49,588.04,0.28410725]
[1743939909178,0.58174106,588.48,588.04,0.28410725]
[1743939909384,0.58174106,588.47,588.04,0.28410725]
[1743939909584,0.628,588.63,588.04,0.28410725]
[1743939909779,0.58187604,588.62,588.04,0.28410725]
[1743939909984,0.58187604,588.61,588.04,0.28410725]
[1743939910185,0.58187604,588.6,588.04,0.28410725]
[1743939910386,0.58187604,588.59,588.03,0.28410725]
[1743939910685,0.58187604,588.58,588.03,0.28410725]
[1743939910885,0.58187604,588.57,588.03,0.28410725]
[1743939911185,0.58187604,588.56,588.03,0.28410725]
[1743939911386,0.58187604,588.55,588.03,0.28410725]
[1743939911585,0.58187604,588.54,588.04,0.28412033]
[1743939911781,0.58187604,588.53,588.05,0.28412033]
[1743939911984,0.58187604,588.52,588.03,0.28412033]
[1743939912184,0.58187604,588.51,588.03,0.28412033]
[1743939912390,0.58187604,588.5,588.03,0.28412033]
[1743939912590,0.58187604,588.49,587.95,0.28412033]
[1743939912790,0.58187604,588.48,587.95,0.28412033]
[1743939913089,0.58187604,588.47,587.94,1.27319059]
[1743939913290,0.58215852,588.46,587.95,0.28412412]
[1743939913589,0.488,588.51,587.95,0.28412412]
[1743939913790,0.58208959,588.5,587.95,0.28412412]
[1743939913984,0.58208959,588.49,587.95,0.28412412]
[1743939914190,0.58208959,588.48,587.95,0.28412412]
[1743939914389,0.58208959,588.47,587.95,0.28412412]
[1743939914590,0.58208959,588.46,587.95,0.28412412]
[1743939914790,0.488,588.51,587.95,0.28412412]
[1743939914990,0.58208317,588.5,587.95,0.28412412]
[1743939915190,0.58208317,588.49,587.95,0.28412412]
[1743939915487,0.58208317,588.48,587.95,0.28412412]
[1743939915790,0.58208317,588.47,587.93,1.27319059]
[1743939915988,0.58208317,588.46,587.93,1.27319059]
[1743939916187,0.58208317,588.45,587.93,1.27319059]
[1743939916392,0.58208317,588.44,587.93,1.27319059]
[1743939916591,0.58208317,588.43,587.93,1.27319059]
[1743939916891,0.58208317,588.42,587.93,1.27319059]
[1743939917191,0.58208317,588.41,587.93,1.27319059]
[1743939917491,0.58208317,588.4,587.93,1.27319059]